fUSD/lending_fUSD_20250304
["ID","MTS","AMOUNT","RATE_DAILY","PERIOD"]
[355294603,1741059041415,-500.0,0.00012722,2]
[355294605,1741059041425,-500.0,0.00012722,2]
[355294607,1741059041435,-758.17,0.00012722,2]
[355294609,1741059041444,-574.92,0.00012722,2]
[355294611,1741059041453,-636.21,0.00012722,2]
[355294613,1741059041462,-500.0,0.00012722,2]
[355294615,1741059041471,-684.49,0.00012722,2]
[355294617,1741059041480,-500.0,0.00012722,2]
[355294619,1741059041489,-500.0,0.00012722,2]
[355294620,1741059041499,-500.0,0.00012722,2]
[355294646,1741059041741,-792.08,0.00012722,2]
[355294648,1741059041752,-929.13,0.00012722,2]
[355294650,1741059041762,-500.0,0.00012722,2]
[355294652,1741059041771,-500.0,0.00012722,2]
[355294654,1741059041780,-500.0,0.00012722,2]
[355294656,1741059041789,-500.0,0.00012722,2]
[355294658,1741059041799,-521.49,0.00012722,2]
[355294660,1741059041808,-783.45,0.00012722,2]
[355294662,1741059041819,-500.0,0.00012722,2]
[355294664,1741059041828,-500.0,0.00012722,2]
[355294666,1741059041838,-500.0,0.00012722,2]
[355294668,1741059041847,-633.33,0.00012722,2]
[355294670,1741059041857,-500.0,0.00012722,2]
[355294672,1741059041867,-500.0,0.00012722,2]
[355294674,1741059041876,-619.55,0.00012722,2]
[355294676,1741059041885,-711.75,0.00012722,2]
[355294678,1741059041894,-528.21590676,0.00012722,2]
[355294680,1741059041904,-618.96,0.00012722,2]
[355294682,1741059041913,-503.64032646,0.00012722,2]
[355294685,1741059041932,-500.0,0.00012722,2]
[355294688,1741059041943,-552.52,0.00012722,2]
[355294690,1741059041953,-500.0,0.00012722,2]
[355294692,1741059041963,-1209.53,0.00012722,2]
[355294694,1741059041973,-500.0,0.00012722,2]
[355294696,1741059041984,-500.0,0.00012722,2]
[355294698,1741059041994,-653.1,0.00012722,2]
[355294700,1741059042004,-1252.54,0.00012722,2]
[355294702,1741059042013,-500.0,0.00012722,2]
[355294704,1741059042023,-918.35,0.00012722,2]
[355294706,1741059042033,-622.39,0.00012722,2]
[355294708,1741059042042,-692.13,0.00012722,2]
[355294710,1741059042051,-500.0,0.00012722,2]
[355294712,1741059042061,-500.0,0.00012722,2]
[355294714,1741059042074,-664.2,0.00012722,2]
[355294716,1741059042084,-948.72,0.00012722,2]
[355294718,1741059042094,-659.63,0.00012722,2]
[355294720,1741059042104,-1415.31,0.00012722,2]
[355294722,1741059042114,-1242.07,0.00012722,2]
[355294724,1741059042124,-886.51,0.00012722,2]
[355294726,1741059042133,-500.0,0.00012722,2]
[355294728,1741059042143,-683.54,0.00012722,2]
[355294730,1741059042153,-1932.54,0.00012722,2]
[355294732,1741059042163,-1139.3,0.00012722,2]
[355294734,1741059042173,-721.69,0.00012722,2]
[355294736,1741059042183,-500.0,0.00012722,2]
[355294738,1741059042192,-1235.35,0.00012722,2]
[355294740,1741059042202,-867.21,0.00012722,2]
[355294742,1741059042211,-1349.3,0.00012722,2]
[355294744,1741059042220,-585.15,0.00012722,2]
[355294746,1741059042230,-881.57,0.00012722,2]
[355294748,1741059042240,-707.52,0.00012722,2]
[355294750,1741059042250,-727.1,0.00012722,2]
[355294752,1741059042259,-500.0,0.00012722,2]
[355294754,1741059042269,-500.0,0.00012722,2]
[355294756,1741059042278,-630.59,0.00012722,2]
[355294758,1741059042288,-948.87,0.00012722,2]
[355294760,1741059042299,-516.19034035,0.00012722,2]
[355294762,1741059042309,-1395.99,0.00012722,2]
[355294764,1741059042326,-500.0,0.00012722,2]
[355294766,1741059042336,-1247.53,0.00012722,2]
[355294768,1741059042346,-500.0,0.00012722,2]
[355294770,1741059042356,-541.3,0.00012722,2]
[355294772,1741059042366,-500.0,0.00012722,2]
[355294774,1741059042375,-1057.86,0.00012722,2]
[355294776,1741059042385,-819.45,0.00012722,2]
[355294778,1741059042395,-739.0,0.00012722,2]
[355294780,1741059042405,-832.33,0.00012722,2]
[355294782,1741059042415,-1445.21,0.00012722,2]
[355294784,1741059042425,-500.0,0.00012722,2]
[355294786,1741059042435,-1008.38,0.00012722,2]
[355294788,1741059042446,-500.0,0.00012722,2]
[355294790,1741059042455,-1181.64,0.00012722,2]
[355294792,1741059042465,-500.0,0.00012722,2]
[355294794,1741059042475,-500.0,0.00012722,2]
[355294796,1741059042486,-1114.33,0.00012722,2]
[355294798,1741059042496,-876.91,0.00012722,2]
[355294800,1741059042506,-991.92,0.00012722,2]
[355294802,1741059042515,-1023.53,0.00012722,2]
[355294804,1741059042525,-730.98,0.00012722,2]
[355294806,1741059042535,-500.0,0.00012722,2]
[355294808,1741059042544,-500.0,0.00012722,2]
[355294810,1741059042553,-939.0,0.00012722,2]
[355294812,1741059042567,-1042.99,0.00012722,2]
[355294814,1741059042579,-500.0,0.00012722,2]
[355294816,1741059042589,-1591.8,0.00012722,2]
[355294818,1741059042599,-500.0,0.00012722,2]
[355294820,1741059042609,-618.87,0.00012722,2]
[355294822,1741059042619,-1200.51,0.00012722,2]
[355294824,1741059042629,-1139.59,0.00012722,2]
[355294826,1741059042639,-638.34,0.00012722,2]
[355294828,1741059042650,-500.0,0.00012722,2]
[355294830,1741059042660,-500.0,0.00012722,2]
[355294832,1741059042670,-500.0,0.00012722,2]
[355294834,1741059042681,-825.52,0.00012722,2]
[355294836,1741059042691,-1752.24,0.00012722,2]
[355294838,1741059042700,-500.0,0.00012722,2]
[355294840,1741059042710,-500.0,0.00012722,2]
[355294842,1741059042720,-538.2,0.00012722,2]
[355294844,1741059042729,-500.0,0.00012722,2]
[355294846,1741059042739,-1505.22,0.00012722,2]
[355294848,1741059042751,-500.0,0.00012722,2]
[355294850,1741059042761,-1654.26,0.00012722,2]
[355294852,1741059042770,-500.0,0.00012722,2]
[355294854,1741059042780,-1314.02,0.00012722,2]
[355294856,1741059042789,-1283.42,0.00012722,2]
[355294859,1741059042799,-433.1375381,0.00012722,2]
[355294862,1741059042808,-646.26,0.00012722,2]
[355294865,1741059042820,-590.72,0.00012722,2]
[355294868,1741059042830,-500.0,0.00012722,2]
[355294872,1741059042839,-643.61,0.00012722,2]
[355294876,1741059042849,-775.17,0.00012722,2]
[355294880,1741059042858,-570.44,0.00012722,2]
[355294884,1741059042867,-955.55,0.00012722,2]
[355294888,1741059042877,-500.0,0.00012722,2]
[355294891,1741059042888,-939.76,0.00012722,2]
[355294893,1741059042897,-648.1,0.00012722,2]
[355294895,1741059042907,-500.0,0.00012722,2]
[355294897,1741059042916,-679.57,0.00012722,2]
[355294899,1741059042925,-848.51,0.00012722,2]
[355294901,1741059042935,-636.77,0.00012722,2]
[355294903,1741059042944,-2575.68,0.00012722,2]
[355294905,1741059042954,-500.0,0.00012722,2]
[355294907,1741059042963,-500.0,0.00012722,2]
[355294909,1741059042973,-682.1,0.00012722,2]
[355294911,1741059042982,-1014.41,0.00012722,2]
[355294913,1741059042992,-500.0,0.00012722,2]
[355294915,1741059043002,-500.0,0.00012722,2]
[355294917,1741059043011,-500.0,0.00012722,2]
[355294919,1741059043021,-804.57,0.00012722,2]
[355294921,1741059043031,-503.11712933,0.00012722,2]
[355294923,1741059043041,-500.0,0.00012722,2]
[355294925,1741059043050,-2679.03,0.00012722,2]
[355294927,1741059043060,-1316.46,0.00012722,2]
[355294929,1741059043071,-500.0,0.00012722,2]
[355294931,1741059043081,-27872.77,0.00012722,2]
[355294933,1741059043090,-512.01694048,0.00012722,2]
[355294935,1741059043099,-21769.62,0.00012722,2]
[355294937,1741059043109,-614.43,0.00012722,2]
[355294939,1741059043118,-500.0,0.00012722,2]
[355294941,1741059043128,-500.0,0.00012722,2]
[355294943,1741059043137,-500.0,0.00012722,2]
[355294945,1741059043147,-500.0,0.00012722,2]
[355294947,1741059043157,-4160.05,0.00012722,2]
[355294949,1741059043166,-500.0,0.00012722,2]
[355294951,1741059043175,-1387.6,0.00012722,2]
[355294953,1741059043184,-967.01,0.00012722,2]
[355294955,1741059043194,-681.79,0.00012722,2]
[355294957,1741059043203,-1378.6,0.00012722,2]
[355294959,1741059043213,-1495.64,0.00012722,2]
[355294961,1741059043223,-702.24,0.00012722,2]
[355294963,1741059043232,-722.22,0.00012722,2]
[355294965,1741059043242,-983.71,0.00012722,2]
[355294967,1741059043251,-2032.14,0.00012722,2]
[355294969,1741059043261,-2975.69,0.00012722,2]
[355294971,1741059043271,-500.0,0.00012722,2]
[355294973,1741059043280,-4056.04,0.00012722,2]
[355294975,1741059043289,-265.63605137,0.00012722,2]
[355294977,1741059043299,-500.0,0.00012722,2]
[355294979,1741059043309,-500.0,0.00012722,2]
[355294981,1741059043321,-32026.51,0.00012722,2]
[355294983,1741059043331,-1103.42,0.00012722,2]
[355294985,1741059043340,-538.84530611,0.00012722,2]
[355294987,1741059043349,-823.72,0.00012722,2]
[355294989,1741059043358,-1041.88,0.00012722,2]
[355294991,1741059043369,-307.25882364,0.00012722,2]
[355294993,1741059043378,-3835.94,0.00012722,2]
[355294995,1741059043387,-500.0,0.00012722,2]
[355294997,1741059043397,-500.0,0.00012722,2]
[355294999,1741059043406,-791.89,0.00012722,2]
[355295001,1741059043415,-1438.98,0.00012722,2]
[355295003,1741059043425,-1654.98,0.00012722,2]
[355295005,1741059043434,-500.0,0.00012722,2]
[355295007,1741059043444,-1784.61,0.00012722,2]
[355295009,1741059043453,-5557.24,0.00012722,2]
[355295011,1741059043463,-500.0,0.00012722,2]
[355295013,1741059043473,-744.28,0.00012722,2]
[355295015,1741059043483,-1084.89,0.00012722,2]
[355295017,1741059043493,-1028.12,0.00012722,2]
[355295019,1741059043503,-1821.51,0.00012722,2]
[355295021,1741059043513,-500.0,0.00012722,2]
[355295023,1741059043524,-1851.0,0.00012722,2]
[355295025,1741059043534,-500.0,0.00012722,2]
[355295027,1741059043544,-5573.34,0.00012722,2]
[355295029,1741059043554,-3404.53,0.00012722,2]
[355295031,1741059043567,-500.0,0.00012722,2]
[355295033,1741059043577,-1010.58,0.00012722,2]
[355295035,1741059043589,-2727.54,0.00012722,2]
[355295037,1741059043598,-819.81,0.00012722,2]
[355295039,1741059043608,-500.0,0.00012722,2]
[355295041,1741059043617,-2938.72,0.00012722,2]
[355295043,1741059043627,-2483.49,0.00012722,2]
[355295045,1741059043637,-705.05,0.00012722,2]
[355295047,1741059043646,-500.0,0.00012722,2]
[355295049,1741059043656,-1045.09,0.00012722,2]
[355295051,1741059043667,-646.99,0.00012722,2]
[355295053,1741059043676,-945.05,0.00012722,2]
[355295054,1741059043685,-665.94,0.00012722,2]
[355295056,1741059043694,-500.0,0.00012722,2]
[355295058,1741059043704,-2451.87,0.00012722,2]
[355295060,1741059043713,-1086.84,0.00012722,2]
[355295062,1741059043722,-861.59,0.00012722,2]
[355295064,1741059043732,-1174.13,0.00012722,2]
[355295066,1741059043741,-1202.92,0.00012722,2]
[355295068,1741059043751,-500.0,0.00012722,2]
[355295070,1741059043760,-500.0,0.00012722,2]
[355295072,1741059043770,-500.0,0.00012722,2]
[355295074,1741059043779,-543.06,0.00012722,2]
[355295076,1741059043788,-1077.11,0.00012722,2]
[355295078,1741059043797,-386.39546214,0.00012723,2]
[355295080,1741059043806,-201712.87844625,0.00012723,2]
[355295140,1741059044371,-2027.02,0.00012721,2]
[355295142,1741059044381,-500.0,0.00012721,2]
[355295144,1741059044392,-12669.0258,0.00012723,2]
[355295147,1741059044411,-500.0,0.00012723,2]
[355295331,1741059046280,-464.92754423,0.00012722,2]
[355295333,1741059046290,-500.0,0.00012722,2]
[355295335,1741059046299,-1327.79331577,0.00012723,2]
[355295340,1741059046336,-520.45800274,0.00012723,2]
[355297007,1741059408817,1000.0,0.00011767,2]
[355297008,1741059454851,231.9,0.00011767,2]
[355297009,1741059542302,200.0,0.00011758,2]
[355297010,1741059617392,1852.42,0.00011741,2]
[355297011,1741059619500,11349.81174448,0.00012349,2]
[355297012,1741059621728,2751.0,0.00011741,2]
[355297013,1741059695509,151.7,0.00011729,2]
[355297014,1741059695734,151.7,0.00011807,2]
[355297015,1741059695938,151.7,0.00011885,2]
[355297016,1741059696159,151.7,0.00011963,2]
[355297017,1741059696365,151.7,0.00012041,2]
[355297018,1741059696784,151.7,0.0001212,2]
[355297019,1741059696984,151.7,0.00012198,2]
[355297020,1741059697186,151.7,0.00012276,2]
[355297021,1741059697418,151.7,0.00012354,2]
[355297022,1741059697646,151.7,0.00012432,2]
[355297023,1741059705637,2630.21,0.00011808,2]
[355297024,1741059727142,192.67872442,0.00011713,2]
[355297025,1741059727171,57.32127558,0.00011713,2]
[355297026,1741059758428,433.40598907,0.00012491,2]
[355297027,1741059804337,244.51,0.00011727,2]
[355297028,1741059811967,907.32,0.00011733,2]
[355297029,1741059868648,6086.34,0.00011708,2]
[355297030,1741059895632,500.0,0.00011711,2]
[355297031,1741059930056,550.0,0.00011,2]
[355297034,1741059936435,150.0,0.00011712,2]
[355297036,1741059966405,853.57,0.00011722,2]
[355297037,1741059989668,5552.0,0.000125,3]
[355297038,1741059995579,5270.19,0.00011703,2]
[355297039,1741060026748,1122.93,0.00011703,2]
[355297041,1741060099089,756.98,0.00011694,2]
[355297042,1741060145583,578.85,9.769e-05,2]
[355297043,1741060145790,578.85,0.00012033,2]
[355297047,1741060176845,-5552.0,0.000126,5]
[355297048,1741060187680,2000.0,0.00011687,2]
[355297049,1741060205128,-151.7,0.00012511,2]
[355297050,1741060205162,-550.0,0.00012543,2]
[355297051,1741060205195,-150.0,0.00012543,2]
[355297052,1741060205226,-150.0,0.00012575,2]
[355297053,1741060205259,-151.7,0.00012589,2]
[355297054,1741060205290,-150.0,0.00012598,2]
[355297055,1741060205323,-171.32065869,0.00012598,2]
[355297056,1741060205360,-300.0,0.00012598,2]
[355297057,1741060205395,-1000.0,0.00012598,2]
[355297058,1741060205428,-726.0115,0.00012599,2]
[355297059,1741060205461,-267.3227,0.00012599,2]
[355297060,1741060205494,-1739.4006,0.00012599,2]
[355297061,1741060205528,-1475.96143822,0.00012599,2]
[355297062,1741060205921,-2416.76736178,0.00012599,2]
[355297063,1741060205957,-1889.03279102,0.00012599,2]
[355297064,1741060227337,200.0,0.000125,5]
[355297088,1741060232425,-14871.90154599,0.00012599,2]
[355297089,1741060232435,-10164.04417715,0.00012599,2]
[355297090,1741060232444,-150.0,0.000126,2]
[355297091,1741060232454,-1000.0,0.000126,2]
[355297092,1741060232463,-2552.5807,0.000126,2]
[355297093,1741060232472,-3116.97362918,0.000126,2]
[355297094,1741060232481,-169.05734339,0.000126,2]
[355297095,1741060232491,-389.28701106,0.000126,2]
[355297096,1741060232501,-2099.54086008,0.00012613,2]
[355297097,1741060232510,-2099.54086007,0.00012617,2]
[355297098,1741060232519,-2099.54086007,0.00012621,2]
[355297099,1741060232528,-307.14800247,0.00012622,2]
[355297100,1741060232538,-16760.93433698,0.00012632,2]
[355297101,1741060232547,-10164.04417711,0.00012632,2]
[355297102,1741060232556,-16760.93433698,0.00012666,2]
[355297103,1741060232566,-10164.04417711,0.00012666,2]
[355297104,1741060232575,-151.7,0.00012667,2]
[355297105,1741060232584,-500.0,0.00012673,2]
[355297107,1741060232595,-369.76595913,0.00012673,2]
[355297109,1741060232605,-475.02384561,0.00012673,2]
[355297111,1741060232614,-152.79429523,0.00012673,2]
[355297113,1741060232623,-221.14928019,0.00012673,2]
[355297115,1741060232632,-308.20455804,0.00012673,2]
[355297117,1741060232641,-160.85332277,0.00012673,2]
[355297119,1741060232650,-161.98680632,0.00012673,2]
[355297121,1741060232660,-153.14544642,0.00012673,2]
[355297122,1741060232669,-151.95047539,0.00012673,2]
[355297124,1741060232678,-198.23682675,0.00012673,2]
[355297126,1741060232688,-500.0,0.00012673,2]
[355297128,1741060232697,-619.70926767,0.00012673,2]
[355297130,1741060232706,-161.08685635,0.00012673,2]
[355297131,1741060232715,-154.2931942,0.00012673,2]
[355297133,1741060232725,-151.07521351,0.00012673,2]
[355297135,1741060232735,-163.03529531,0.00012673,2]
[355297137,1741060232745,-14651.0,0.00012685,2]
[355297139,1741060232755,-224.82360241,0.0001269,2]
[355297141,1741060232764,-1535.69,0.00012697,2]
[355297143,1741060232774,-2409.92,0.00012697,2]
[355297145,1741060232783,-627.70428791,0.00012697,2]
[355297147,1741060232794,-500.0,0.00012697,2]
[355297149,1741060232803,-1599.23,0.00012697,2]
[355297151,1741060232813,-500.0,0.00012697,2]
[355297195,1741060232823,-500.0,0.00012697,2]
[355297197,1741060233107,-2139.28,0.00012697,2]
[355297199,1741060233118,-1241.37,0.00012697,2]
[355297201,1741060233129,-625.18,0.00012697,2]
[355297203,1741060233141,-1997.56,0.00012697,2]
[355297205,1741060233151,-1483.55,0.00012697,2]
[355297206,1741060233163,-500.0,0.00012697,2]
[355297208,1741060233175,-500.0,0.00012697,2]
[355297209,1741060233185,-1256.08,0.00012697,2]
[355297210,1741060233195,-1085.81,0.00012697,2]
[355297211,1741060233205,-500.0,0.00012697,2]
[355297212,1741060233216,-2465.75,0.00012697,2]
[355297213,1741060233226,-1000.0,0.00012698,2]
[355297214,1741060233236,-33617.34161511,0.00012698,2]
[355297215,1741060233246,-500.55404404,0.00012698,2]
[355297216,1741060233257,-259.91847661,0.00012698,2]
[355297217,1741060233266,-500.0,0.00012698,2]
[355297218,1741060233276,-500.0,0.00012698,2]
[355297219,1741060233286,-264.67662476,0.00012698,2]
[355297220,1741060233297,-512.838906,0.00012698,2]
[355297221,1741060233307,-516.59963175,0.00012698,2]
[355297222,1741060233317,-505.23977962,0.00012698,2]
[355297223,1741060233328,-585.79,0.00012698,2]
[355297224,1741060233338,-503.06698918,0.00012698,2]
[355297225,1741060233352,-613.23476984,0.00012698,2]
[355297226,1741060233367,-505.15212492,0.00012698,2]
[355297227,1741060233377,-509.60971077,0.00012698,2]
[355297228,1741060233388,-506.03627323,0.00012698,2]
[355297229,1741060233398,-509.8341786,0.00012698,2]
[355297230,1741060233407,-508.39922507,0.00012698,2]
[355297231,1741060233416,-589.98,0.00012698,2]
[355297232,1741060233426,-383.21544463,0.00012698,2]
[355297233,1741060233435,-500.0,0.00012698,2]
[355297234,1741060233445,-500.0,0.00012698,2]
[355297235,1741060233454,-500.0,0.00012698,2]
[355297236,1741060233464,-733.36,0.00012698,2]
[355297238,1741060233475,-540.40081622,0.00012698,2]
[355297239,1741060233485,-500.0,0.00012698,2]
[355297241,1741060233495,-591.4,0.00012698,2]
[355297243,1741060233505,-500.0,0.00012698,2]
[355297245,1741060233516,-817.88,0.00012698,2]
[355297247,1741060233526,-509.56684494,0.00012698,2]
[355297249,1741060233536,-500.0,0.00012698,2]
[355297251,1741060233546,-510.25754353,0.00012698,2]
[355297253,1741060233555,-500.0,0.00012698,2]
[355297255,1741060233566,-500.0,0.00012698,2]
[355297257,1741060233576,-500.0,0.00012698,2]
[355297259,1741060233586,-500.0,0.00012698,2]
[355297261,1741060233598,-500.0,0.00012698,2]
[355297263,1741060233608,-500.0,0.00012698,2]
[355297265,1741060233618,-830.35,0.00012698,2]
[355297267,1741060233627,-500.0,0.00012698,2]
[355297269,1741060233638,-500.0,0.00012698,2]
[355297271,1741060233647,-1245.19,0.00012698,2]
[355297273,1741060233657,-500.0,0.00012698,2]
[355297275,1741060233669,-25846.709397,0.00012698,2]
[355297277,1741060233679,-500.0,0.00012698,2]
[355297279,1741060233690,-500.0,0.00012698,2]
[355297281,1741060233700,-2346.92,0.00012698,2]
[355297283,1741060233711,-509.85739777,0.00012698,2]
[355297285,1741060233721,-510.04391265,0.00012698,2]
[355297287,1741060233731,-500.0,0.00012698,2]
[355297289,1741060233742,-510.35088997,0.00012698,2]
[355297291,1741060233752,-839.93,0.00012698,2]
[355297293,1741060233762,-705.14,0.00012698,2]
[355297295,1741060233773,-1694.96,0.00012698,2]
[355297297,1741060233783,-3443.44,0.00012698,2]
[355297299,1741060233792,-508.31155542,0.00012698,2]
[355297301,1741060233803,-306.22202053,0.00012698,2]
[355297303,1741060233812,-500.0,0.00012698,2]
[355297305,1741060233822,-2172.65,0.00012698,2]
[355297307,1741060233832,-2755.76,0.00012698,2]
[355297309,1741060233842,-2179.34,0.00012698,2]
[355297311,1741060233853,-500.0,0.00012698,2]
[355297313,1741060233862,-460.43789561,0.00012698,2]
[355297315,1741060233871,-16649.225294,0.00012698,2]
[355297317,1741060233881,-500.0,0.00012698,2]
[355297319,1741060233891,-506.2670323,0.00012698,2]
[355297320,1741060233901,-509.94148261,0.00012698,2]
[355297322,1741060233910,-538.37,0.00012698,2]
[355297324,1741060233920,-500.0,0.00012698,2]
[355297326,1741060233930,-500.0,0.00012698,2]
[355297328,1741060233940,-1454.23,0.00012698,2]
[355297330,1741060233950,-743.14,0.00012698,2]
[355297332,1741060233960,-653.924271,0.00012698,2]
[355297334,1741060233970,-2193.93,0.00012698,2]
[355297336,1741060233984,-513.15,0.00012698,2]
[355297338,1741060233994,-500.0,0.00012698,2]
[355297340,1741060234004,-1504.19,0.00012698,2]
[355297342,1741060234014,-1095.23,0.00012698,2]
[355297344,1741060234026,-500.0,0.00012698,2]
[355297346,1741060234035,-162.746381,0.00012698,2]
[355297347,1741060234045,-873.6,0.00012698,2]
[355297349,1741060234055,-500.0,0.00012698,2]
[355297351,1741060234067,-6729.38,0.00012698,2]
[355297353,1741060234077,-154.096799,0.00012698,2]
[355297355,1741060234087,-500.0,0.00012698,2]
[355297357,1741060234098,-2417.92,0.00012698,2]
[355297359,1741060234108,-2129.43,0.00012698,2]
[355297361,1741060234119,-500.0,0.00012698,2]
[355297363,1741060234128,-500.0,0.00012698,2]
[355297365,1741060234138,-509.40973545,0.00012698,2]
[355297367,1741060234147,-500.0,0.00012698,2]
[355297369,1741060234158,-500.0,0.00012698,2]
[355297371,1741060234167,-501.55114955,0.00012698,2]
[355297373,1741060234177,-278.387909,0.00012698,2]
[355297375,1741060234186,-509.70033771,0.00012698,2]
[355297377,1741060234196,-1813.95,0.00012698,2]
[355297379,1741060234205,-3020.68,0.00012698,2]
[355297381,1741060234214,-487.89266485,0.00012698,2]
[355297383,1741060234223,-514.40427744,0.00012698,2]
[355297385,1741060234233,-2050.58,0.00012698,2]
[355297386,1741060234243,-500.0,0.00012698,2]
[355297388,1741060234252,-510.5564309,0.00012698,2]
[355297390,1741060234262,-2305.74,0.00012698,2]
[355297392,1741060234272,-500.0,0.00012698,2]
[355297394,1741060234281,-599.5,0.00012698,2]
[355297396,1741060234291,-317.202289,0.00012698,2]
[355297398,1741060234301,-611.3,0.00012698,2]
[355297400,1741060234311,-2834.05,0.00012698,2]
[355297402,1741060234321,-881.64,0.00012698,2]
[355297404,1741060234330,-1175.48,0.00012698,2]
[355297405,1741060234340,-1304.85,0.00012698,2]
[355297407,1741060234351,-500.0,0.00012698,2]
[355297409,1741060234361,-911.87,0.00012698,2]
[355297411,1741060234371,-505.05201659,0.00012698,2]
[355297412,1741060234380,-500.0,0.00012698,2]
[355297414,1741060234389,-2674.52,0.00012698,2]
[355297416,1741060234399,-643.67700001,0.00012698,2]
[355297418,1741060234408,-507.88598377,0.00012698,2]
[355297420,1741060234419,-6822.33,0.00012698,2]
[355297422,1741060234428,-510.80849671,0.00012698,2]
[355297424,1741060234438,-509.4084355,0.00012698,2]
[355297426,1741060234448,-1023.25,0.00012698,2]
[355297428,1741060234457,-2422.71,0.00012698,2]
[355297430,1741060234467,-2371.43,0.00012698,2]
[355297432,1741060234476,-218.50756111,0.00012698,2]
[355297434,1741060234485,-500.0,0.00012698,2]
[355297436,1741060234494,-500.0,0.00012698,2]
[355297438,1741060234504,-500.0,0.00012698,2]
[355297440,1741060234513,-509.63767471,0.00012698,2]
[355297442,1741060234522,-500.0,0.00012698,2]
[355297444,1741060234531,-716.3,0.00012698,2]
[355297446,1741060234540,-225.55985268,0.00012698,2]
[355297448,1741060234549,-1590.15,0.00012698,2]
[355297450,1741060234559,-500.0,0.00012698,2]
[355297452,1741060234568,-508.28,0.00012698,2]
[355297454,1741060234577,-3758.29,0.00012698,2]
[355297456,1741060234586,-677.54,0.00012698,2]
[355297458,1741060234596,-17049.82,0.00012698,2]
[355297459,1741060234607,-505.15936753,0.00012698,2]
[355297461,1741060234616,-507.43749843,0.00012698,2]
[355297464,1741060234626,-506.36510195,0.00012698,2]
[355297465,1741060234635,-1303.24,0.00012698,2]
[355297467,1741060234645,-508.99995133,0.00012698,2]
[355297469,1741060234655,-500.0,0.00012698,2]
[355297471,1741060234664,-500.0,0.00012698,2]
[355297473,1741060234674,-2257.13,0.00012698,2]
[355297475,1741060234683,-500.0,0.00012698,2]
[355297477,1741060234693,-500.0,0.00012698,2]
[355297479,1741060234703,-3134.8,0.00012698,2]
[355297481,1741060234712,-622.47,0.00012698,2]
[355297483,1741060234721,-506.11668324,0.00012698,2]
[355297485,1741060234731,-500.0,0.00012698,2]
[355297487,1741060234740,-649.8,0.00012698,2]
[355297489,1741060234750,-505.21552395,0.00012698,2]
[355297490,1741060234759,-500.0,0.00012698,2]
[355297492,1741060234768,-500.0,0.00012698,2]
[355297494,1741060234777,-7919.18,0.00012698,2]
[355297495,1741060234787,-507.87950117,0.00012698,2]
[355297497,1741060234797,-500.0,0.00012698,2]
[355297499,1741060234808,-500.0,0.00012698,2]
[355297501,1741060234818,-500.0,0.00012698,2]
[355297503,1741060234828,-805.05,0.00012699,2]
[355297505,1741060234837,-500.0,0.00012699,2]
[355297507,1741060234848,-2484.24,0.00012699,2]
[355297509,1741060234857,-1087.23,0.00012699,2]
[355297511,1741060234867,-601.31,0.00012699,2]
[355297513,1741060234877,-902.75,0.00012699,2]